fUST/lending_fUST_20240501
["ID","MTS","AMOUNT","RATE_DAILY","PERIOD"]
[325168555,1714547438609,-1662.56,0.00060273,120]
[325168556,1714547438619,-500.0,0.00060273,120]
[325168557,1714547438628,-656.99,0.00060273,120]
[325168558,1714547438639,-500.0,0.00060273,120]
[325168559,1714547438653,-500.0,0.00060273,120]
[325168560,1714547438662,-500.0,0.00060273,120]
[325168561,1714547438672,-8081.66,0.00060273,120]
[325168562,1714547438686,-500.0,0.00060273,120]
[325168563,1714547438696,-500.0,0.00060273,120]
[325168564,1714547438705,-500.0,0.00060273,120]
[325168565,1714547438715,-500.0,0.00060273,120]
[325168566,1714547438724,-511.76493726,0.00060273,120]
[325168567,1714547438735,-500.0,0.00060273,60]
[325168568,1714547438744,-500.0,0.00060273,120]
[325168569,1714547438754,-602.26,0.00060273,120]
[325168572,1714547438763,-500.0,0.00060273,120]
[325168575,1714547438773,-3110.46,0.00060273,120]
[325168577,1714547438783,-971.34,0.00060273,120]
[325168579,1714547438792,-367.17559822,0.00060273,120]
[325168582,1714547438802,-485.85548076,0.00060273,120]
[325168586,1714547438812,-500.0,0.00060273,120]
[325168589,1714547438822,-500.0,0.00060273,120]
[325168592,1714547438831,-500.0,0.00060273,120]
[325168595,1714547438841,-500.0,0.00060273,120]
[325168596,1714547438850,-500.0,0.00060273,120]
[325168598,1714547438860,-500.0,0.00060273,120]
[325168600,1714547438870,-500.0,0.00060273,120]
[325168602,1714547438879,-1007.33,0.00060273,120]
[325168604,1714547438889,-500.0,0.00060273,120]
[325168606,1714547438899,-587.16790242,0.00060273,120]
[325168607,1714547438908,-8317.68,0.00060273,120]
[325168608,1714547438918,-500.0,0.00060273,120]
[325168609,1714547438927,-500.0,0.00060273,120]
[325168611,1714547438941,-500.0,0.00060273,120]
[325168613,1714547438950,-640.8,0.00060273,120]
[325168614,1714547438960,-500.0,0.00060273,120]
[325168615,1714547438969,-500.0,0.00060273,120]
[325168616,1714547438979,-22712.48,0.00060273,120]
[325168617,1714547438988,-500.0,0.00060273,60]
[325168618,1714547438997,-560.80171022,0.00060273,120]
[325168619,1714547439007,-570.7,0.00060273,120]
[325168620,1714547439016,-500.0,0.00060273,120]
[325168621,1714547439025,-500.0,0.00060273,120]
[325168622,1714547439035,-213.89646646,0.00060273,120]
[325168623,1714547439045,-500.0,0.00060273,120]
[325168624,1714547439054,-500.0,0.00060273,7]
[325168625,1714547439063,-500.0,0.00060273,120]
[325168626,1714547439072,-1923.12,0.00060273,120]
[325168627,1714547439082,-500.0,0.00060273,120]
[325168628,1714547439091,-500.0,0.00060273,120]
[325168629,1714547439100,-1750.0,0.00060273,120]
[325168630,1714547439110,-500.0,0.00060273,120]
[325168631,1714547439119,-500.0,0.00060273,120]
[325168632,1714547439128,-500.0,0.00060273,120]
[325168633,1714547439137,-500.0,0.00060273,120]
[325168634,1714547439146,-500.0,0.00060273,120]
[325168635,1714547439155,-651.08,0.00060273,21]
[325168636,1714547439164,-18265.72,0.00060273,120]
[325168637,1714547439174,-500.0,0.00060273,120]
[325168638,1714547439187,-500.0,0.00060273,120]
[325168639,1714547439197,-500.0,0.00060273,120]
[325168640,1714547439206,-500.0,0.00060273,120]
[325168641,1714547439216,-500.0,0.00060273,120]
[325168642,1714547439225,-5841.86,0.00060273,120]
[325168643,1714547439235,-500.0,0.00060273,120]
[325168644,1714547439245,-500.0,0.00060273,120]
[325168645,1714547439255,-1753.43,0.00060273,120]
[325168646,1714547439264,-500.0,0.00060273,120]
[325168647,1714547439274,-500.0,0.00060273,120]
[325168648,1714547439283,-500.0,0.00060273,120]
[325168649,1714547439292,-519.18640405,0.00060273,120]
[325168650,1714547439302,-500.0,0.00060273,120]
[325168651,1714547439312,-13151.9,0.00060273,120]
[325168652,1714547439321,-500.0,0.00060273,120]
[325168653,1714547439330,-500.0,0.00060273,120]
[325168654,1714547439340,-500.0,0.00060273,120]
[325168656,1714547439350,-500.0,0.00060273,120]
[325168657,1714547439358,-1876.83,0.00060273,120]
[325168658,1714547439367,-500.0,0.00060273,120]
[325168659,1714547439377,-151.0,0.00061014,120]
[325168660,1714547439387,-500.0,0.00061574,120]
[325168661,1714547439395,-999.0,0.00061574,120]
[325168662,1714547439405,-999.0,0.00061574,120]
[325168663,1714547439414,-999.0,0.00061574,120]
[325168664,1714547439423,-999.0,0.00061574,120]
[325168665,1714547439436,-999.0,0.00061574,120]
[325168666,1714547439445,-427.62948,0.00061671,2]
[325168667,1714547439455,-500.0,0.00062,120]
[325168668,1714547439464,-500.0,0.00063013,120]
[325168669,1714547439474,-500.0,0.00063013,120]
[325168670,1714547439483,-500.0,0.00063013,120]
[325168671,1714547439492,-500.0,0.00063013,120]
[325168672,1714547439502,-500.0,0.00063013,120]
[325168673,1714547439511,-500.0,0.00063013,120]
[325168674,1714547439521,-596.67047265,0.00063013,120]
[325168675,1714547439530,-500.0,0.00063013,120]
[325168676,1714547439539,-500.0,0.00063013,120]
[325168677,1714547439549,-1719.12,0.00063013,120]
[325168679,1714547439559,-500.0,0.00063013,120]
[325168680,1714547439569,-500.0,0.00063013,120]
[325168681,1714547439579,-1653.85,0.00063013,120]
[325168683,1714547439588,-500.0,0.00063013,120]
[325168685,1714547439601,-500.0,0.00063013,120]
[325168687,1714547439611,-500.0,0.00063013,120]
[325168689,1714547439620,-500.0,0.00063013,120]
[325168691,1714547439629,-500.0,0.00063013,120]
[325168693,1714547439639,-500.0,0.00063013,120]
[325168695,1714547439651,-504.60886532,0.00063013,120]
[325168697,1714547439661,-232.6833623,0.00063013,120]
[325168699,1714547439670,-500.0,0.00063013,120]
[325168701,1714547439679,-500.0,0.00063013,120]
[325168703,1714547439693,-500.0,0.00063013,120]
[325168705,1714547439702,-620.17919916,0.00063013,120]
[325168707,1714547439712,-502.21685229,0.00063013,120]
[325168709,1714547439722,-500.0,0.00063013,120]
[325168711,1714547439731,-500.0,0.00063013,120]
[325168713,1714547439740,-1951.86,0.00063013,120]
[325168715,1714547439750,-500.0,0.00063013,120]
[325168717,1714547439760,-1364.58,0.00063013,120]
[325168719,1714547439770,-503.98945713,0.00063013,120]
[325168721,1714547439779,-500.0,0.00063013,120]
[325168723,1714547439789,-1126.32,0.00063013,120]
[325168735,1714547439799,-519.92031143,0.00063013,120]
[325168737,1714547439909,-500.0,0.00063013,120]
[325168739,1714547439919,-583.53,0.00063013,120]
[325168741,1714547439928,-2851.46,0.00063013,2]
[325168743,1714547439944,-500.0,0.00063013,120]
[325168745,1714547439953,-559.07,0.00063013,120]
[325168747,1714547439962,-2762.94,0.00063013,120]
[325168749,1714547439972,-500.0,0.00063013,120]
[325168751,1714547439981,-500.0,0.00063013,120]
[325168753,1714547439991,-500.0,0.00063013,120]
[325168755,1714547440000,-500.0,0.00063013,120]
[325168757,1714547440010,-500.0,0.00063013,120]
[325168759,1714547440020,-1809.97,0.00063013,120]
[325168762,1714547440030,-408.57375007,0.00063013,120]
[325168763,1714547440039,-500.0,0.00063013,120]
[325168766,1714547440049,-500.0,0.00063013,120]
[325168768,1714547440059,-590.59064369,0.00063013,120]
[325168770,1714547440069,-500.0,0.00063013,120]
[325168771,1714547440078,-500.0,0.00063013,120]
[325168773,1714547440087,-500.0,0.00063013,120]
[325168775,1714547440097,-500.0,0.00063013,120]
[325168778,1714547440107,-500.0,0.00063013,120]
[325168779,1714547440115,-1643.62,0.00063013,120]
[325168781,1714547440125,-500.0,0.00063013,120]
[325168783,1714547440135,-500.0,0.00063013,120]
[325168785,1714547440144,-977.05,0.00063013,120]
[325168787,1714547440153,-500.0,0.00063013,120]
[325168789,1714547440163,-500.0,0.00063013,120]
[325168791,1714547440172,-876.53,0.00063013,120]
[325168793,1714547440186,-3386.05,0.00063013,120]
[325168795,1714547440196,-500.0,0.00063013,120]
[325168797,1714547440205,-500.0,0.00063013,120]
[325168799,1714547440215,-251.92218109,0.00063013,120]
[325168801,1714547440225,-500.0,0.00063013,120]
[325168803,1714547440234,-500.0,0.00063013,120]
[325168805,1714547440243,-500.0,0.00063013,120]
[325168807,1714547440253,-500.0,0.00063013,120]
[325168809,1714547440262,-468.76851429,0.00063013,120]
[325168811,1714547440272,-500.0,0.00063013,120]
[325168813,1714547440281,-500.0,0.00063013,120]
[325168815,1714547440291,-1108.05,0.00063013,120]
[325168817,1714547440300,-393.41623304,0.00063013,120]
[325168819,1714547440310,-687.32,0.00063013,120]
[325168821,1714547440319,-744.54,0.00063013,120]
[325168823,1714547440329,-500.0,0.00063013,120]
[325168825,1714547440339,-500.0,0.00063013,120]
[325168827,1714547440348,-500.0,0.00063013,120]
[325168829,1714547440358,-3806.86,0.00063013,120]
[325168831,1714547440368,-500.0,0.00063013,120]
[325168833,1714547440378,-228.44210317,0.00063013,120]
[325168835,1714547440388,-500.0,0.00063013,120]
[325168837,1714547440397,-1662.56,0.00063013,120]
[325168839,1714547440407,-500.0,0.00063013,120]
[325168841,1714547440416,-656.99,0.00063013,120]
[325168843,1714547440426,-503.46560064,0.00063013,120]
[325168845,1714547440440,-500.0,0.00063013,120]
[325168849,1714547440450,-8081.66,0.00063013,120]
[325168852,1714547440460,-500.0,0.00063013,120]
[325168854,1714547440469,-500.0,0.00063013,120]
[325168857,1714547440479,-500.0,0.00063013,120]
[325168861,1714547440488,-500.0,0.00063013,120]
[325168863,1714547440498,-500.0,0.00063013,120]
[325168866,1714547440507,-602.26,0.00063013,120]
[325168869,1714547440516,-500.0,0.00063013,60]
[325168872,1714547440526,-3110.46,0.00063013,120]
[325168875,1714547440536,-971.34,0.00063013,120]
[325168878,1714547440545,-500.0,0.00063013,120]
[325168880,1714547440555,-500.0,0.00063013,120]
[325168883,1714547440564,-595.52435397,0.00063013,120]
[325168886,1714547440573,-500.0,0.00063013,120]
[325168889,1714547440583,-1007.33,0.00063013,120]
[325168891,1714547440592,-500.0,0.00063013,120]
[325168893,1714547440606,-8317.68,0.00063013,120]
[325168895,1714547440615,-500.0,0.00063013,120]
[325168897,1714547440626,-500.0,0.00063013,120]
[325168899,1714547440635,-500.0,0.00063013,120]
[325168901,1714547440647,-500.0,0.00063013,120]
[325168903,1714547440658,-22712.48,0.00063013,120]
[325168905,1714547440667,-500.0,0.00063013,60]
[325168907,1714547440677,-570.7,0.00063013,120]
[325168909,1714547440690,-500.0,0.00063013,120]
[325168911,1714547440700,-477.38311973,0.00063013,120]
[325168913,1714547440709,-500.0,0.00063013,120]
[325168915,1714547440718,-500.0,0.00063013,7]
[325168917,1714547440729,-500.0,0.00063013,120]
[325168919,1714547440738,-1923.12,0.00063013,120]
[325168921,1714547440748,-500.0,0.00063013,120]
[325168923,1714547440757,-500.0,0.00063013,120]
[325168925,1714547440767,-500.0,0.00063013,120]
[325168927,1714547440776,-500.0,0.00063013,120]
[325168929,1714547440786,-500.0,0.00063013,120]
[325168931,1714547440795,-651.08,0.00063013,21]
[325168933,1714547440805,-18265.72,0.00063013,120]
[325168935,1714547440815,-168.68989587,0.00063013,120]
[325168937,1714547440826,-500.0,0.00063013,120]
[325168939,1714547440836,-500.0,0.00063013,120]
[325168942,1714547440846,-530.19570087,0.00063013,120]
[325168943,1714547440856,-521.28541285,0.00063013,120]
[325168946,1714547440866,-5841.86,0.00063013,120]
[325168948,1714547440875,-1753.43,0.00063013,120]
[325168949,1714547440885,-500.0,0.00063013,120]
[325168952,1714547440894,-500.0,0.00063013,120]
[325168954,1714547440904,-500.0,0.00063013,120]
[325168955,1714547440913,-13151.9,0.00063013,120]
[325168957,1714547440922,-500.0,0.00063013,120]
[325168960,1714547440936,-13.58907496,0.00063013,120]
[325168993,1714547441250,-418.331,0.00057534,120]
[325168995,1714547441261,-81.669,0.00057534,120]
[325168997,1714547441271,-486.41092504,0.00063013,120]
[325168999,1714547441280,-515.01,0.00063013,120]
[325169001,1714547441290,-1876.83,0.00063013,120]
[325169003,1714547441299,-427.62947,0.00063413,2]
[325169006,1714547441309,-166.0,0.0006397,35]
[325169007,1714547441319,-150.5,0.0006397,35]
[325169010,1714547441330,-150.5,0.0006398,35]
[325169011,1714547441340,-166.0,0.0006398,35]
[325169013,1714547441349,-150.5,0.0006399,35]
[325169016,1714547441359,-168.92,0.0006399,35]
[325169018,1714547441368,-166.0,0.0006399,35]
[325169019,1714547441378,-87369.0390064,0.0006399,60]
[325169021,1714547441388,-739572.9713,0.00064,30]
[325169023,1714547441397,-151.0,0.00064219,120]
[325169025,1714547441407,-427.62947,0.00065156,2]
[325169027,1714547441417,-500.0,0.00065753,120]
[325169029,1714547441426,-500.0,0.00065753,120]
[325169031,1714547441442,-500.0,0.00065753,120]
[325169033,1714547441452,-500.0,0.00065753,120]
[325169035,1714547441461,-500.0,0.00065753,120]
[325169037,1714547441470,-500.0,0.00065753,120]
[325169039,1714547441479,-500.0,0.00065753,120]
[325169040,1714547441488,-1719.12,0.00065753,120]
[325169042,1714547441498,-422.96510434,0.00065753,120]
[325169044,1714547441507,-469.32845545,0.00065753,120]
[325169046,1714547441517,-1653.85,0.00065753,120]
[325169048,1714547441526,-500.0,0.00065753,120]
[325169050,1714547441535,-500.0,0.00065753,120]
[325169052,1714547441545,-500.0,0.00065753,120]
[325169054,1714547441553,-500.0,0.00065753,120]
[325169056,1714547441563,-500.0,0.00065753,120]
[325169058,1714547441571,-500.0,0.00065753,120]
[325169060,1714547441581,-500.0,0.00065753,120]
[325169062,1714547441590,-500.0,0.00065753,120]
[325169064,1714547441603,-500.0,0.00065753,120]
[325169066,1714547441612,-500.0,0.00065753,120]
[325169067,1714547441621,-500.0,0.00065753,120]
[325169069,1714547441631,-1951.86,0.00065753,120]
[325169071,1714547441642,-503.02145497,0.00065753,120]
[325169073,1714547441658,-1364.58,0.00065753,120]
[325169075,1714547441667,-500.0,0.00065753,120]
[325169077,1714547441677,-1126.32,0.00065753,120]
[325169079,1714547441692,-502.10763807,0.00065753,120]
[325169081,1714547441702,-583.53,0.00065753,120]
[325169083,1714547441711,-2851.46,0.00065753,2]
[325169085,1714547441722,-500.0,0.00065753,120]
[325169087,1714547441733,-559.07,0.00065753,120]
[325169089,1714547441745,-2762.94,0.00065753,120]
[325169091,1714547441754,-500.0,0.00065753,120]
[325169093,1714547441764,-500.0,0.00065753,120]
[325169095,1714547441774,-500.0,0.00065753,120]
[325169097,1714547441784,-500.0,0.00065753,120]
[325169099,1714547441793,-500.0,0.00065753,120]
[325169102,1714547441803,-1809.97,0.00065753,120]
[325169103,1714547441812,-500.0,0.00065753,120]
[325169105,1714547441821,-500.0,0.00065753,120]
[325169107,1714547441831,-500.0,0.00065753,120]
[325169109,1714547441841,-500.0,0.00065753,120]
[325169111,1714547441850,-500.0,0.00065753,120]
[325169113,1714547441859,-500.0,0.00065753,120]
[325169115,1714547441870,-500.0,0.00065753,120]
[325169117,1714547441879,-1643.62,0.00065753,120]
[325169119,1714547441888,-500.0,0.00065753,120]
[325169120,1714547441897,-500.0,0.00065753,120]
[325169122,1714547441906,-977.05,0.00065753,120]
[325169124,1714547441916,-415.0786147,0.00065753,120]
[325169126,1714547441925,-500.0,0.00065753,120]
[325169127,1714547441940,-876.53,0.00065753,120]
[325169129,1714547441949,-3386.05,0.00065753,120]
[325169131,1714547441959,-500.0,0.00065753,120]
[325169133,1714547441968,-362.33199693,0.00065753,120]
[325169134,1714547441977,-500.0,0.00065753,120]
[325169136,1714547441987,-500.0,0.00065753,120]
[325169138,1714547441997,-500.0,0.00065753,120]
[325169139,1714547442007,-500.0,0.00065753,120]
[325169140,1714547442016,-500.0,0.00065753,120]
[325169141,1714547442026,-500.0,0.00065753,120]
[325169142,1714547442035,-1108.05,0.00065753,120]
[325169144,1714547442045,-687.32,0.00065753,120]
[325169146,1714547442054,-744.54,0.00065753,120]
[325169148,1714547442063,-542.83571433,0.00065753,120]
[325169149,1714547442072,-500.0,0.00065753,120]
[325169159,1714547442181,-500.0,0.00065753,120]
[325169161,1714547442197,-3806.86,0.00065753,120]
[325169163,1714547442206,-500.0,0.00065753,120]
[325169164,1714547442215,-500.0,0.00065753,120]
[325169166,1714547442225,-1662.56,0.00065753,120]
[325169168,1714547442235,-656.99,0.00065753,120]
[325169170,1714547442246,-500.0,0.00065753,120]
[325169172,1714547442255,-8081.66,0.00065753,120]
[325169174,1714547442264,-184.73662804,0.00065753,120]
[325169175,1714547442274,-296.63,0.00065753,120]
[325169177,1714547442283,-500.0,0.00065753,120]
[325169179,1714547442293,-500.0,0.00065753,120]
[325169181,1714547442303,-500.0,0.00065753,120]
[325169183,1714547442312,-602.26,0.00065753,120]
[325169185,1714547442321,-500.0,0.00065753,60]
[325169187,1714547442330,-3110.46,0.00065753,120]
[325169188,1714547442340,-971.34,0.00065753,120]
[325169190,1714547442349,-500.0,0.00065753,120]
[325169192,1714547442358,-500.0,0.00065753,120]
[325169194,1714547442367,-500.0,0.00065753,120]
[325169196,1714547442377,-1007.33,0.00065753,120]
[325169198,1714547442386,-327.07,0.00065753,120]
[325169200,1714547442395,-8317.68,0.00065753,120]
[325169202,1714547442404,-500.0,0.00065753,120]
[325169204,1714547442414,-500.0,0.00065753,120]
[325169205,1714547442423,-500.0,0.00065753,120]
[325169207,1714547442435,-500.0,0.00065753,120]
[325169209,1714547442445,-22712.48,0.00065753,120]
[325169211,1714547442454,-500.0,0.00065753,60]
[325169213,1714547442463,-570.7,0.00065753,120]
[325169215,1714547442472,-500.0,0.00065753,120]
[325169216,1714547442481,-448.04262726,0.00065753,120]
[325169218,1714547442490,-500.0,0.00065753,7]
[325169220,1714547442500,-430.6794287,0.00065753,120]
[325169222,1714547442510,-1923.12,0.00065753,120]
[325169224,1714547442519,-2625.0,0.00065753,120]
[325169226,1714547442529,-500.0,0.00065753,120]
[325169227,1714547442538,-500.0,0.00065753,120]
[325169229,1714547442548,-500.0,0.00065753,120]
[325169231,1714547442558,-257.67302798,0.00065753,120]
[325169233,1714547442567,-500.0,0.00065753,120]
[325169235,1714547442576,-651.08,0.00065753,21]
[325169236,1714547442585,-18265.72,0.00065753,120]
[325169238,1714547442595,-500.0,0.00065753,120]
[325169240,1714547442607,-5841.86,0.00065753,120]
[325169242,1714547442616,-1753.43,0.00065753,120]
[325169244,1714547442625,-415.60700737,0.00065753,120]
[325169246,1714547442635,-500.0,0.00065753,120]
[325169248,1714547442650,-500.0,0.00065753,120]
[325169249,1714547442659,-13151.9,0.00065753,120]
[325169251,1714547442669,-500.0,0.00065753,120]
[325169253,1714547442678,-178.74,0.00065753,120]
[325169255,1714547442694,-1876.83,0.00065753,120]
[325169257,1714547442703,-427.62948,0.00066898,2]
[325169258,1714547442713,-33789.23494298,0.000669,120]
[325169260,1714547442723,-176.825202,0.00067288,2]
[325169262,1714547442732,-151.0,0.00067425,120]
[325169264,1714547442742,-539.62836074,0.00068493,120]
[325169266,1714547442752,-500.0,0.00068493,120]
[325169268,1714547442762,-500.0,0.00068493,120]
[325169270,1714547442772,-500.0,0.00068493,120]
[325169272,1714547442781,-500.0,0.00068493,120]
[325169274,1714547442790,-500.0,0.00068493,120]
[325169275,1714547442800,-500.0,0.00068493,120]
[325169277,1714547442809,-1719.12,0.00068493,120]
[325169279,1714547442819,-1653.85,0.00068493,120]
[325169281,1714547442832,-500.0,0.00068493,120]
[325169283,1714547442842,-500.0,0.00068493,120]
[325169286,1714547442854,-500.0,0.00068493,120]
[325169289,1714547442864,-500.0,0.00068493,120]
[325169290,1714547442873,-500.0,0.00068493,120]
[325169292,1714547442882,-500.0,0.00068493,120]
[325169294,1714547442891,-500.0,0.00068493,120]
[325169296,1714547442900,-500.0,0.00068493,120]
[325169298,1714547442910,-500.0,0.00068493,120]
[325169300,1714547442920,-500.0,0.00068493,120]
[325169302,1714547442930,-500.0,0.00068493,120]
[325169304,1714547442945,-1951.86,0.00068493,120]
[325169306,1714547442954,-1364.58,0.00068493,120]
[325169308,1714547442963,-622.93682409,0.00068493,120]
[325169310,1714547442972,-1126.32,0.00068493,120]
[325169311,1714547442981,-583.53,0.00068493,120]
[325169313,1714547442990,-2851.46,0.00068493,2]
[325169315,1714547442999,-474.88681701,0.00068493,120]
[325169317,1714547443008,-559.07,0.00068493,120]
[325169319,1714547443018,-2762.94,0.00068493,120]
[325169321,1714547443028,-500.0,0.00068493,120]
[325169323,1714547443038,-500.0,0.00068493,120]
[325169325,1714547443048,-500.0,0.00068493,120]
[325169327,1714547443059,-500.0,0.00068493,120]
[325169328,1714547443068,-616.8679915,0.00068493,120]
[325169330,1714547443078,-1809.97,0.00068493,120]
[325169332,1714547443088,-500.0,0.00068493,120]
[325169334,1714547443098,-505.00090758,0.00068493,120]
[325169336,1714547443107,-500.0,0.00068493,120]
[325169338,1714547443116,-500.0,0.00068493,120]
[325169340,1714547443126,-500.0,0.00068493,120]
[325169342,1714547443135,-500.0,0.00068493,120]
[325169344,1714547443144,-500.0,0.00068493,120]
[325169345,1714547443153,-1643.62,0.00068493,120]
[325169347,1714547443163,-500.0,0.00068493,120]
[325169349,1714547443172,-500.0,0.00068493,120]
[325169351,1714547443182,-977.05,0.00068493,120]
[325169353,1714547443198,-500.0,0.00068493,120]
[325169355,1714547443207,-876.53,0.00068493,120]
[325169357,1714547443216,-3386.05,0.00068493,120]
[325169359,1714547443226,-352.87665793,0.00068493,120]
[325169361,1714547443235,-500.0,0.00068493,120]
[325169363,1714547443244,-500.0,0.00068493,120]
[325169365,1714547443254,-500.0,0.00068493,120]
[325169366,1714547443264,-500.0,0.00068493,120]
[325169368,1714547443273,-500.0,0.00068493,120]
[325169370,1714547443283,-500.0,0.00068493,120]
[325169372,1714547443292,-500.0,0.00068493,120]
[325169373,1714547443302,-500.0,0.00068493,120]
[325169374,1714547443311,-500.0,0.00068493,120]
[325169375,1714547443320,-500.0,0.00068493,120]
[325169376,1714547443330,-499.0,0.00068493,120]
[325169377,1714547443339,-1108.05,0.00068493,120]
[325169378,1714547443348,-687.32,0.00068493,120]
[325169379,1714547443358,-744.54,0.00068493,120]
[325169380,1714547443367,-500.0,0.00068493,120]
[325169381,1714547443376,-503.001243,0.00068493,120]
[325169382,1714547443386,-3806.86,0.00068493,120]
[325169383,1714547443395,-500.0,0.00068493,120]
[325169384,1714547443404,-500.0,0.00068493,120]
[325169385,1714547443414,-1662.56,0.00068493,120]
[325169386,1714547443423,-656.99,0.00068493,120]
[325169387,1714547443438,-500.0,0.00068493,120]
[325169388,1714547443448,-8081.66,0.00068493,120]
[325169389,1714547443457,-500.0,0.00068493,120]
[325169391,1714547443467,-500.0,0.00068493,120]
[325169393,1714547443476,-500.0,0.00068493,120]
[325169395,1714547443486,-602.26,0.00068493,120]
[325169396,1714547443495,-500.0,0.00068493,60]
[325169397,1714547443504,-3110.46,0.00068493,120]
[325169398,1714547443514,-971.34,0.00068493,120]
[325169399,1714547443524,-500.0,0.00068493,120]
[325169400,1714547443533,-500.0,0.00068493,120]
[325169401,1714547443543,-500.0,0.00068493,120]
[325169402,1714547443553,-1007.33,0.00068493,120]
[325169403,1714547443562,-8317.68,0.00068493,120]
[325169404,1714547443571,-500.0,0.00068493,120]
[325169405,1714547443582,-616.87,0.00068493,120]
[325169406,1714547443591,-500.0,0.00068493,120]
[325169407,1714547443607,-500.0,0.00068493,120]
[325169408,1714547443616,-22712.48,0.00068493,120]
[325169409,1714547443626,-500.0,0.00068493,60]
[325169411,1714547443636,-570.7,0.00068493,120]
[325169412,1714547443648,-500.0,0.00068493,120]
[325169414,1714547443658,-500.0,0.00068493,7]
[325169416,1714547443667,-1923.12,0.00068493,120]
[325169418,1714547443677,-500.0,0.00068493,120]
[325169420,1714547443692,-500.0,0.00068493,120]
[325169422,1714547443701,-207.88971763,0.00068493,120]
[325169424,1714547443711,-500.0,0.00068493,120]
[325169426,1714547443721,-651.08,0.00068493,21]
[325169428,1714547443730,-18265.72,0.00068493,120]
[325169430,1714547443740,-564.19177769,0.00068493,120]
[325169431,1714547443749,-5841.86,0.00068493,120]
[325169433,1714547443758,-1753.43,0.00068493,120]
[325169435,1714547443768,-500.0,0.00068493,120]
[325169437,1714547443778,-500.0,0.00068493,120]
[325169439,1714547443787,-13151.9,0.00068493,120]
[325169441,1714547443797,-500.0,0.00068493,120]
[325169443,1714547443806,-1876.83,0.00068493,120]
[325169445,1714547443816,-427.62947,0.0006864,2]
[325169447,1714547443826,-1000.0,0.00068854,120]
[325169449,1714547443835,-154.55179978,0.00069,7]
[325169451,1714547443845,-10000.0,0.00069657,120]
[325169452,1714547443854,-175751.35977016,0.0007,120]
[325169454,1714547443864,-427.62948,0.00070382,2]
[325169456,1714547443873,-1000.0,0.00070566,120]
[325169458,1714547443883,-151.0,0.0007063,120]
[325169460,1714547443892,-1203.25513556,0.00071231,7]
[325169462,1714547443902,-512.65594973,0.00071231,120]
[325169464,1714547443911,-605.20638172,0.00071231,120]
[325169466,1714547443921,-500.0,0.00071231,120]
[325169468,1714547443932,-1356.77,0.00071231,120]
[325169470,1714547443944,-1010.74,0.00071231,120]
[325169477,1714547443952,-208.55650036,0.00071231,120]
[325169483,1714547443961,-972.54,0.00071231,120]
[325169489,1714547443970,-500.0,0.00071231,120]
[325169493,1714547443980,-500.0,0.00071231,120]
[325169498,1714547443990,-500.0,0.00071231,120]
[325169505,1714547444000,-500.0,0.00071231,120]
[325169511,1714547444010,-500.0,0.00071231,120]
[325169517,1714547444020,-500.0,0.00071231,120]